bitfinex/quotes_BTCUSD_20250813
["timestamp","ask_amount","ask_price","bid_price","bid_amount"]
[1755061144564,1.68886313,119280.0,119270.0,0.33284]
[1755061149155,2.38934022,119280.0,119270.0,0.33252]
[1755061149594,1.68886313,119280.0,119270.0,0.33252]
[1755061149825,2.38934022,119280.0,119270.0,0.33252]
[1755061150624,1.68886313,119280.0,119270.0,0.33252]
[1755061150829,2.38934022,119280.0,119270.0,0.33252]
[1755061151388,2.40678924,119280.0,119270.0,0.33252]
[1755061152613,2.43073924,119280.0,119270.0,0.33252]
[1755061170457,2.40678924,119280.0,119270.0,0.33252]
[1755061175765,2.40678924,119280.0,119270.0,0.33456]
[1755061176832,2.40678924,119280.0,119270.0,0.33252]
[1755061180215,0.30535797,119280.0,119270.0,0.33252]
[1755061180421,2.40678924,119280.0,119270.0,0.33252]
[1755061196931,2.39327207,119280.0,119270.0,0.33252]
[1755061205616,0.2918408,119280.0,119270.0,0.33252]
[1755061205821,2.39327207,119280.0,119270.0,0.33252]
[1755061209113,2.39127207,119280.0,119270.0,0.33252]
[1755061211861,2.39112468,119280.0,119270.0,0.33252]
[1755061213174,2.39094761,119280.0,119270.0,0.33252]
[1755061213372,2.3907013,119280.0,119270.0,0.33252]
[1755061217829,2.39055391,119280.0,119270.0,0.33252]
[1755061218063,2.44085391,119280.0,119270.0,0.33252]
[1755061218422,2.44073125,119280.0,119270.0,0.33252]
[1755061219237,2.44068773,119280.0,119270.0,0.33252]
[1755061221704,2.44068773,119280.0,119270.0,0.33216]
[1755061221913,2.45630775,119280.0,119270.0,0.33216]
[1755061222990,2.45630589,119280.0,119270.0,0.33216]
[1755061223202,2.45605958,119280.0,119270.0,0.33016]
[1755061223349,2.46105958,119280.0,119270.0,0.33116]
[1755061223955,2.46081327,119280.0,119270.0,0.33116]
[1755061224435,2.46381327,119280.0,119270.0,0.33216]
[1755061225626,2.46374008,119280.0,119270.0,0.33216]
[1755061226705,2.46369162,119280.0,119270.0,0.33216]
[1755061228127,2.46364316,119280.0,119270.0,0.33216]
[1755061229173,2.448025,119280.0,119270.0,0.33216]
[1755061229293,2.46364035,119280.0,119270.0,0.33216]
[1755061229905,2.46353748,119280.0,119270.0,0.33216]
[1755061233157,2.46334063,119280.0,119270.0,0.33216]
[1755061235988,2.46321797,119280.0,119270.0,0.33216]
[1755061238366,2.46321947,119280.0,119270.0,0.33216]
[1755061238598,2.46309681,119280.0,119270.0,0.33216]
[1755061238941,2.46309683,119280.0,119270.0,0.33216]
[1755061240205,2.4629989,119280.0,119270.0,0.33216]
[1755061240411,2.46290097,119280.0,119270.0,0.33216]
[1755061241370,2.46191371,119280.0,119270.0,0.33216]
[1755061241652,2.46191403,119280.0,119270.0,0.33216]
[1755061243368,2.46191403,119280.0,119270.0,0.33416]
[1755061243369,1.75606694,119280.0,119270.0,0.33416]
[1755061244304,1.75306694,119280.0,119270.0,0.33316]
[1755061244517,1.75306844,119280.0,119270.0,0.33316]
[1755061244723,2.45554553,119280.0,119270.0,0.33416]
[1755061245770,2.45054553,119280.0,119270.0,0.33316]
[1755061245978,2.45354553,119280.0,119270.0,0.33416]
[1755061247189,1.75294578,119280.0,119270.0,0.33416]
[1755061247416,1.70264578,119280.0,119270.0,0.33416]
[1755061247627,1.70255612,119280.0,119270.0,0.33416]
[1755061248656,1.70556612,119280.0,119270.0,0.33416]
[1755061248883,1.70762612,119280.0,119270.0,0.33416]
[1755061250084,1.7071361,119280.0,119270.0,0.33416]
[1755061250955,1.70406774,119280.0,119270.0,0.33416]
[1755061252326,1.70307948,119280.0,119270.0,0.33416]
[1755061253935,1.70608948,119280.0,119270.0,0.33416]
[1755061255396,2.40632026,119280.0,119270.0,0.33416]
[1755061255592,2.4062718,119280.0,119270.0,0.33216]
[1755061256780,2.39064123,119280.0,119270.0,0.33216]
[1755061257018,2.40627283,119280.0,119270.0,0.33216]
[1755061259399,2.4057792,119280.0,119270.0,0.33216]
[1755061260441,2.40479094,119280.0,119270.0,0.33216]
[1755061262492,2.40472269,119280.0,119270.0,0.33216]
[1755061263964,2.45502269,119280.0,119270.0,0.33216]
[1755061264168,2.47977036,119280.0,119270.0,0.33216]
[1755061264811,2.45502269,119280.0,119270.0,0.33216]
[1755061265020,2.4548753,119280.0,119270.0,0.33216]
[1755061265161,2.45487396,119280.0,119270.0,0.33216]
[1755061267404,2.40457396,119280.0,119270.0,0.33216]
[1755061271359,2.40408033,119280.0,119270.0,0.33216]
[1755061274293,2.40406974,119280.0,119270.0,0.33216]
[1755061276066,2.40407053,119280.0,119270.0,0.33216]
[1755061276274,2.4035769,119280.0,119270.0,0.33216]
[1755061276752,0.16770082,119260.0,119250.0,0.000922]
[1755061276951,1.65399857,119260.0,119250.0,0.204142]
[1755061277158,1.65137825,119260.0,119250.0,0.204142]
[1755061277513,1.67652925,119260.0,119250.0,0.204142]
[1755061277895,1.67652925,119260.0,119250.0,0.332862]
[1755061277896,1.67628294,119260.0,119250.0,0.332862]
[1755061279178,1.67728294,119260.0,119250.0,0.333862]
[1755061279711,1.67828294,119260.0,119250.0,0.334862]
[1755061280541,0.27732876,119260.0,119250.0,0.334862]
[1755061280744,1.67808609,119260.0,119250.0,0.334862]
[1755061282095,1.68775648,119260.0,119250.0,0.334862]
[1755061283234,1.68763875,119260.0,119250.0,0.334862]
[1755061286990,1.68613875,119260.0,119250.0,0.334862]
[1755061287389,1.69128875,119260.0,119250.0,0.334862]
[1755061288162,1.69104239,119260.0,119250.0,0.334862]
[1755061289294,1.69104239,119260.0,119250.0,0.332722]
[1755061292244,1.70849141,119260.0,119250.0,0.332722]
[1755061296453,1.70849141,119260.0,119250.0,0.334222]
[1755061296775,1.70749141,119260.0,119250.0,0.333222]
[1755061296990,1.70649141,119260.0,119250.0,0.332222]
[1755061297184,1.71049141,119260.0,119250.0,0.334222]
[1755061299541,1.71049141,119260.0,119250.0,0.336202]
[1755061301210,1.70534141,119260.0,119250.0,0.336202]
[1755061302088,1.71060141,119260.0,119250.0,0.336202]
[1755061302510,1.76090141,119260.0,119250.0,0.336202]
[1755061306094,0.9874153,119260.0,119250.0,0.336202]
[1755061306317,0.9874153,119260.0,119250.0,0.339372]
[1755061306794,1.68789239,119260.0,119250.0,0.339372]
[1755061307250,1.68789239,119260.0,119250.0,0.336202]
[1755061314213,1.69108239,119260.0,119250.0,0.336202]
[1755061314650,1.69315239,119260.0,119250.0,0.336202]
[1755061320227,1.69315239,119260.0,119250.0,0.334222]
[1755061322245,0.29219821,119260.0,119250.0,0.334222]
[1755061322668,1.69315239,119260.0,119250.0,0.334222]
[1755061338532,1.71060141,119260.0,119250.0,0.334222]
[1755061349510,1.70093102,119260.0,119250.0,0.334222]
[1755061354887,1.71030602,119260.0,119250.0,0.334222]
[1755061368893,0.30935184,119260.0,119250.0,0.334222]
[1755061369137,1.71030602,119260.0,119250.0,0.334222]
[1755061380297,1.71030602,119260.0,119250.0,0.336262]
[1755061380481,1.70504602,119260.0,119250.0,0.336262]
[1755061380854,0.98711991,119260.0,119250.0,0.336262]
[1755061381053,0.98711991,119260.0,119250.0,0.339192]
[1755061381261,1.687597,119260.0,119250.0,0.339192]
[1755061382133,1.687597,119260.0,119250.0,0.336262]
[1755061386302,1.687597,119260.0,119250.0,0.339192]
[1755061387370,1.687597,119260.0,119250.0,0.336262]
[1755061393870,0.98711991,119260.0,119250.0,0.336262]
[1755061400385,0.99227991,119260.0,119250.0,0.336262]
[1755061403104,0.29180282,119260.0,119250.0,0.336262]
[1755061403312,0.98918991,119260.0,119250.0,0.336262]
[1755061404426,0.98711991,119260.0,119250.0,0.336262]
[1755061405166,0.98511991,119260.0,119250.0,0.335262]
[1755061405376,0.98511991,119260.0,119250.0,0.336262]
[1755061405583,0.98611991,119260.0,119250.0,0.336262]
[1755061405778,0.98411991,119260.0,119250.0,0.335262]
[1755061406082,0.98511991,119260.0,119250.0,0.336262]
[1755061408746,0.98718991,119260.0,119250.0,0.336262]
[1755061408956,0.99027991,119260.0,119250.0,0.336262]
[1755061409356,0.98090491,119260.0,119250.0,0.336262]
[1755061413399,0.28042782,119260.0,119250.0,0.336262]
[1755061413622,0.98090491,119260.0,119250.0,0.336262]
[1755061413941,0.97574491,119260.0,119250.0,0.336262]
[1755061414498,0.97896491,119260.0,119250.0,0.336262]
[1755061414824,0.98093491,119260.0,119250.0,0.336262]
[1755061415451,0.98993217,119260.0,119250.0,0.336262]
[1755061416234,0.28945508,119260.0,119250.0,0.336262]
[1755061416503,0.98993217,119260.0,119250.0,0.336262]
[1755061416831,0.98671217,119260.0,119250.0,0.336262]
[1755061417028,0.8193486,119260.0,119250.0,0.336262]
[1755061417339,0.11887151,119260.0,119250.0,0.336262]
[1755061417551,0.8193486,119260.0,119250.0,0.339252]
[1755061418411,0.73462535,119260.0,119250.0,0.337252]
[1755061418588,0.73562535,119260.0,119250.0,0.340252]
[1755061418743,0.73662535,119260.0,119250.0,0.341252]
[1755061418948,0.73562535,119260.0,119250.0,0.338252]
[1755061419302,0.03414826,119260.0,119250.0,0.337252]
[1755061419490,0.73462535,119260.0,119250.0,0.337252]
[1755061419697,0.73562535,119260.0,119250.0,0.338252]
[1755061419898,0.73662535,119260.0,119250.0,0.341252]
[1755061422474,0.73662535,119260.0,119250.0,0.338262]
[1755061422738,0.73662535,119260.0,119250.0,0.341252]
[1755061423967,0.73662535,119260.0,119250.0,0.338262]
[1755061424769,0.03614826,119260.0,119250.0,0.338262]
[1755061424969,0.73662535,119260.0,119250.0,0.338262]
[1755061426061,0.03614826,119260.0,119250.0,0.341252]
[1755061426276,0.73662535,119260.0,119250.0,0.341252]
[1755061426719,0.03614826,119260.0,119250.0,0.341252]
[1755061427757,0.73662535,119260.0,119250.0,0.341252]
[1755061429839,0.03614826,119260.0,119250.0,0.341252]
[1755061430035,0.73662535,119260.0,119250.0,0.338262]
[1755061430271,0.73662535,119260.0,119250.0,0.341252]
[1755061430939,0.73662535,119260.0,119250.0,0.338262]
[1755061431162,0.03614826,119260.0,119250.0,0.338262]
[1755061431370,0.73662535,119260.0,119250.0,0.338262]
[1755061435282,0.03614826,119260.0,119250.0,0.338262]
[1755061435487,0.73662535,119260.0,119250.0,0.338262]
[1755061436849,0.72762809,119260.0,119250.0,0.338262]
[1755061437959,0.002,119260.0,119250.0,0.541252]
[1755061438650,0.001,119260.0,119250.0,0.538252]
[1755061438862,0.73450454,119270.0,119250.0,0.537252]
[1755061439076,0.001,119260.0,119250.0,0.540252]
[1755061439294,0.73450454,119270.0,119250.0,0.537252]
[1755061439706,0.001,119260.0,119250.0,0.540252]
[1755061439916,0.001,119260.0,119250.0,0.537252]
[1755061440135,0.002,119260.0,119250.0,0.538252]
[1755061440604,0.001,119260.0,119250.0,0.537252]
[1755061441085,0.002,119260.0,119250.0,0.538252]
[1755061441302,0.002,119260.0,119250.0,0.540252]
[1755061441523,0.001,119260.0,119250.0,0.539252]
[1755061441753,0.70936154,119270.0,119250.0,0.537252]
[1755061441980,0.002,119260.0,119250.0,0.540252]
[1755061443567,0.001,119260.0,119250.0,0.539252]
[1755061443750,0.71233154,119270.0,119250.0,0.537252]
[1755061444093,0.71233154,119270.0,119250.0,0.538252]
[1755061444656,0.71233154,119270.0,119250.0,0.537252]
[1755061444871,0.71136154,119270.0,119250.0,0.539252]
[1755061445245,0.71136154,119270.0,119250.0,0.538252]
[1755061445653,0.71136154,119270.0,119250.0,0.539252]
[1755061447376,0.70047709,119260.0,119250.0,0.539252]
[1755061447598,0.01385445,119270.0,119250.0,0.539252]
[1755061447761,0.01385445,119270.0,119250.0,0.536262]
[1755061447965,0.70047709,119260.0,119250.0,0.536262]
[1755061448168,0.70539709,119260.0,119250.0,0.205502]
[1755061448413,0.70539709,119260.0,119250.0,0.332822]
[1755061448601,1.40587418,119260.0,119250.0,0.332822]
[1755061448848,1.40587418,119260.0,119250.0,0.333822]
[1755061449029,1.70566425,119260.0,119250.0,0.204502]
[1755061449230,1.70566425,119260.0,119250.0,0.332822]
[1755061449575,1.70766425,119260.0,119250.0,0.333822]
[1755061449780,1.70566425,119260.0,119250.0,0.332822]
[1755061449994,1.70566425,119260.0,119250.0,0.331822]
[1755061450125,1.70766425,119260.0,119250.0,0.332822]
[1755061450354,1.70866425,119260.0,119250.0,0.332822]
[1755061450796,1.08631257,119260.0,119250.0,0.332822]
[1755061451320,1.08431257,119260.0,119250.0,0.331822]
[1755061452286,1.08631257,119260.0,119250.0,0.332822]
[1755061462480,1.08631257,119260.0,119250.0,0.204502]
[1755061462689,1.08631257,119260.0,119250.0,0.332822]
[1755061465487,1.06209257,119260.0,119250.0,0.332822]
[1755061472791,1.68497687,119260.0,119250.0,0.332822]
[1755061481054,0.28349007,119260.0,119250.0,0.332822]
[1755061481291,1.68497687,119260.0,119250.0,0.332822]
[1755061482519,1.68497687,119260.0,119250.0,0.332782]
[1755061482955,1.68497687,119260.0,119250.0,0.204502]
[1755061483158,1.68497687,119260.0,119250.0,0.332782]
[1755061487703,1.68497687,119260.0,119250.0,0.204502]
[1755061487942,1.68497687,119260.0,119250.0,0.332782]
[1755061490388,0.98423347,119260.0,119250.0,0.332782]
[1755061491466,1.68497687,119260.0,119250.0,0.332782]
[1755061492786,0.98423347,119260.0,119250.0,0.332782]
[1755061494426,1.68497687,119260.0,119250.0,0.332782]
[1755061495264,1.69388203,119260.0,119250.0,0.332782]
[1755061496548,0.29239523,119260.0,119250.0,0.332782]
[1755061496770,1.69388203,119260.0,119250.0,0.332782]
[1755061497436,0.29239523,119260.0,119250.0,0.332782]
[1755061497652,1.69388203,119260.0,119250.0,0.332782]
[1755061504817,1.68497687,119260.0,119250.0,0.332782]
[1755061505504,0.28349007,119260.0,119250.0,0.332782]
[1755061505691,1.68497687,119260.0,119250.0,0.332782]
[1755061506648,1.68497687,119260.0,119250.0,0.332702]
[1755061507480,1.69380341,119260.0,119250.0,0.332702]
[1755061510834,1.69083341,119260.0,119250.0,0.334762]
[1755061511053,0.82043919,119260.0,119250.0,0.334762]
[1755061511266,0.98814001,119260.0,119250.0,0.337792]
[1755061512562,0.82043919,119260.0,119250.0,0.209592]
[1755061512774,0.82043919,119260.0,119250.0,0.337792]
[1755061514484,0.82043919,119260.0,119250.0,0.334762]
[1755061516270,0.98814001,119260.0,119250.0,0.334762]
[1755061517385,0.28739661,119260.0,119250.0,0.334762]
[1755061517588,0.98814001,119260.0,119250.0,0.334762]
[1755061519603,0.29274661,119260.0,119250.0,0.334762]
[1755061519829,0.99349001,119260.0,119250.0,0.334762]
[1755061524658,0.82578919,119260.0,119250.0,0.334762]
[1755061526107,0.82043919,119260.0,119250.0,0.334762]
[1755061527382,0.73771594,119260.0,119250.0,0.337792]
[1755061527791,0.71256994,119260.0,119250.0,0.337792]
[1755061528212,0.71256994,119260.0,119250.0,0.334762]
[1755061528834,0.7037434,119260.0,119250.0,0.334762]
[1755061530104,0.71253739,119260.0,119250.0,0.334762]
[1755061534594,0.71458739,119260.0,119250.0,0.334762]
[1755061534944,0.71769739,119260.0,119250.0,0.334762]
[1755061541623,0.71769739,119260.0,119250.0,0.204502]
[1755061541878,1.69328486,119260.0,119250.0,0.204502]
[1755061542086,1.71843486,119260.0,119250.0,0.332662]
[1755061542728,1.71643486,119260.0,119250.0,0.331662]
[1755061543137,1.72043486,119260.0,119250.0,0.332662]
[1755061544505,0.31894806,119260.0,119250.0,0.332662]
[1755061544530,1.72043486,119260.0,119250.0,0.332662]
[1755061544735,1.71943486,119260.0,119250.0,0.332662]
[1755061545161,1.71943486,119260.0,119250.0,0.333662]
[1755061545162,1.72143486,119260.0,119250.0,0.333662]
[1755061555385,1.72143486,119260.0,119250.0,0.205502]
[1755061555596,1.72143486,119260.0,119250.0,0.333662]
[1755061560320,1.69701486,119260.0,119250.0,0.333662]
[1755061563488,1.68822087,119260.0,119250.0,0.333662]
[1755061564811,0.28673407,119260.0,119250.0,0.333662]
[1755061565057,1.69689414,119260.0,119250.0,0.333662]
[1755061565984,0.29540734,119260.0,119250.0,0.333662]
[1755061566195,1.69689414,119260.0,119250.0,0.333662]
[1755061566639,1.69689414,119260.0,119250.0,0.205502]
[1755061566842,1.69689414,119260.0,119250.0,0.333662]
[1755061572613,0.29540734,119260.0,119250.0,0.333662]
[1755061572827,1.69689414,119260.0,119250.0,0.333662]
[1755061578822,1.69378414,119260.0,119250.0,0.335832]
[1755061579249,1.69677414,119260.0,119250.0,0.335832]
[1755061579458,1.69677414,119260.0,119250.0,0.333662]
[1755061582559,1.74707414,119260.0,119250.0,0.333662]
[1755061582770,1.69677414,119260.0,119250.0,0.333662]
[1755061586090,1.69677414,119260.0,119250.0,0.205502]
[1755061586290,1.69677414,119260.0,119250.0,0.333622]
[1755061596546,1.68810087,119260.0,119250.0,0.333622]
[1755061597869,0.28661407,119260.0,119250.0,0.333622]
[1755061598077,1.68810087,119260.0,119250.0,0.333622]
[1755061599948,1.69691496,119260.0,119250.0,0.333622]
[1755061606456,1.71436398,119260.0,119250.0,0.333622]
[1755061614035,0.31287718,119260.0,119250.0,0.333622]
[1755061614236,1.71436398,119260.0,119250.0,0.333622]
[1755061615664,0.31287718,119260.0,119250.0,0.333622]
[1755061615872,1.71436398,119260.0,119250.0,0.333622]
[1755061617892,1.71436398,119260.0,119250.0,0.335572]
[1755061618952,1.71436398,119260.0,119250.0,0.333622]
[1755061621824,1.70554989,119260.0,119250.0,0.333622]
[1755061622441,1.71416224,119260.0,119250.0,0.333622]
[1755061623505,1.71247156,119260.0,119250.0,0.333622]
[1755061623721,1.71247156,119260.0,119250.0,0.335602]
[1755061624397,1.69203254,119260.0,119250.0,0.335602]
[1755061625897,1.69509254,119260.0,119250.0,0.335602]
[1755061627451,1.69509254,119260.0,119250.0,0.333622]
[1755061633663,1.69484912,119260.0,119250.0,0.333622]
[1755061639727,0.29336232,119260.0,119250.0,0.333622]
[1755061639925,1.69484912,119260.0,119250.0,0.333622]
[1755061642357,1.69431885,119260.0,119250.0,0.333622]
[1755061642559,1.69640885,119260.0,119250.0,0.333622]
[1755061654444,1.69560718,119260.0,119250.0,0.333622]
[1755061656333,1.69356197,119260.0,119250.0,0.333622]
[1755061659890,0.29207517,119260.0,119250.0,0.333622]
[1755061660308,1.69356197,119260.0,119250.0,0.335702]
[1755061664792,1.69356197,119260.0,119250.0,0.333622]
[1755061672097,1.69356197,119260.0,119250.0,0.335702]
[1755061673151,0.98231747,119260.0,119250.0,0.335702]
[1755061673366,0.98231747,119260.0,119250.0,0.338702]
[1755061674235,0.11387325,119260.0,119250.0,0.338702]
[1755061674450,0.78946665,119260.0,119250.0,0.338702]
[1755061675502,0.78746665,119260.0,119250.0,0.337702]
[1755061675921,0.08272325,119260.0,119250.0,0.336702]
[1755061676155,0.7007434,119260.0,119250.0,0.336702]
[1755061676393,0.7027434,119260.0,119250.0,0.337702]
[1755061676611,0.002,119260.0,119250.0,0.337702]
[1755061676832,0.7027434,119260.0,119250.0,0.337702]
[1755061677269,0.71223793,119260.0,119250.0,0.337702]
[1755061681621,0.01149453,119260.0,119250.0,0.337702]
[1755061681829,0.71223793,119260.0,119250.0,0.337702]
[1755061691658,0.01149453,119260.0,119250.0,0.337702]
[1755061691895,0.71223793,119260.0,119250.0,0.337702]
[1755061693370,0.71223793,119260.0,119250.0,0.334702]
[1755061693805,0.71223793,119260.0,119250.0,0.337832]
[1755061694855,0.01149453,119260.0,119250.0,0.337832]
[1755061695052,0.71223793,119260.0,119250.0,0.337832]
[1755061695498,0.01149453,119260.0,119250.0,0.337832]
[1755061695728,0.003,119260.0,119250.0,0.337832]
[1755061695934,0.7027434,119260.0,119250.0,0.337832]
[1755061696352,0.7007434,119260.0,119250.0,0.336832]
[1755061696771,0.001,119260.0,119250.0,0.337832]
[1755061696983,0.001,119260.0,119250.0,0.362975]
[1755061697634,0.7007434,119260.0,119250.0,0.361975]
[1755061697835,0.7017434,119260.0,119250.0,0.362975]
[1755061698239,0.7017434,119260.0,119250.0,0.363975]
[1755061698469,0.001,119260.0,119250.0,0.363975]
[1755061698676,0.7017434,119260.0,119250.0,0.363975]
[1755061701766,0.001,119260.0,119250.0,0.363975]
[1755061701971,0.7017434,119260.0,119250.0,0.363975]
[1755061708122,0.001,119260.0,119250.0,0.363975]
[1755061708347,0.7017434,119260.0,119250.0,0.363975]
[1755061709339,0.001,119260.0,119250.0,0.363975]
[1755061709752,0.001,119260.0,119250.0,0.44669825]
[1755061711294,0.001,119260.0,119250.0,0.44569825]
[1755061711745,0.002,119260.0,119250.0,0.44769825]
[1755061713007,0.001,119260.0,119250.0,0.44669825]
[1755061713225,0.002,119260.0,119250.0,0.44869825]
[1755061731203,0.002,119260.0,119250.0,0.44875825]
[1755061740236,0.002,119260.0,119250.0,0.55327825]
[1755061745109,0.002,119260.0,119250.0,0.44875825]
[1755061763024,0.002,119260.0,119250.0,0.47375825]
[1755061763914,0.001,119260.0,119250.0,0.47175825]
[1755061764122,0.7036734,119280.0,119250.0,0.46975825]
[1755061764358,0.7036734,119280.0,119260.0,0.08272325]
[1755061764584,0.7036734,119280.0,119270.0,0.12848]
[1755061765012,0.7058334,119280.0,119270.0,0.12848]
[1755061765619,0.00509,119280.0,119270.0,0.12848]
[1755061765869,0.7058334,119280.0,119270.0,0.12848]
[1755061767538,0.7068334,119280.0,119270.0,0.12848]
[1755061768190,0.7088334,119280.0,119270.0,0.12948]
[1755061769009,0.7088334,119280.0,119270.0,0.33048]
[1755061770161,1.4095768,119280.0,119270.0,0.33048]
[1755061770369,0.7088334,119280.0,119270.0,0.33048]
[1755061771200,1.4095768,119280.0,119270.0,0.33048]
[1755061771437,0.7088334,119280.0,119270.0,0.33048]
[1755061774452,0.00809,119280.0,119270.0,0.33048]
[1755061774663,0.7088334,119280.0,119270.0,0.33048]
[1755061776144,0.00809,119280.0,119270.0,0.33048]
[1755061776373,0.7088334,119280.0,119270.0,0.33048]
[1755061777437,0.00809,119280.0,119270.0,0.33048]
[1755061777669,0.7088334,119280.0,119270.0,0.33048]
[1755061781288,1.4095768,119280.0,119270.0,0.33048]
[1755061781519,0.7088334,119280.0,119270.0,0.33048]
[1755061782181,1.4095768,119280.0,119270.0,0.33048]
[1755061785283,0.00809,119280.0,119270.0,0.33048]
[1755061785516,0.7088334,119280.0,119270.0,0.33048]
[1755061793624,1.4095768,119280.0,119270.0,0.33048]
[1755061794803,1.4095768,119280.0,119270.0,0.3302]
[1755061796056,1.4095768,119280.0,119270.0,0.33068]
[1755061796311,1.4339368,119280.0,119270.0,0.33068]
[1755061798335,0.03245,119280.0,119270.0,0.33068]
[1755061798579,1.4339368,119280.0,119270.0,0.33068]
[1755061806633,1.4095768,119280.0,119270.0,0.33068]
[1755061807055,0.00809,119280.0,119270.0,0.33068]
[1755061807258,0.7037434,119280.0,119270.0,0.33277]
[1755061807907,0.7057234,119280.0,119270.0,0.33277]
[1755061808109,1.4064668,119280.0,119270.0,0.33277]
[1755061808286,0.7087134,119280.0,119270.0,0.33277]
[1755061808486,1.4094568,119280.0,119270.0,0.33277]
[1755061810987,0.7087134,119280.0,119270.0,0.33277]
[1755061814926,1.4094568,119280.0,119270.0,0.33277]
[1755061817179,0.003,119280.0,119270.0,0.33585]
[1755061817377,0.7037434,119280.0,119270.0,0.33585]
[1755061817910,0.7037434,119280.0,119270.0,0.33277]
[1755061818153,0.7057234,119280.0,119270.0,0.33277]
[1755061820418,0.7087134,119280.0,119270.0,0.33277]
[1755061822843,0.7338544,119280.0,119270.0,0.33277]
[1755061823956,1.4345978,119280.0,119270.0,0.33068]
[1755061824177,0.033111,119280.0,119270.0,0.33068]
[1755061824425,0.7338544,119280.0,119270.0,0.33068]
[1755061825307,1.4345978,119280.0,119270.0,0.33068]
[1755061825760,1.4582178,119280.0,119270.0,0.33068]
[1755061838471,1.4345978,119280.0,119270.0,0.33068]
[1755061838716,1.6022705,119280.0,119270.0,0.202]
[1755061838926,1.68499375,119280.0,119270.0,0.33032]
[1755061839928,1.68199375,119280.0,119270.0,0.32932]
[1755061840327,1.68699375,119280.0,119270.0,0.33032]
[1755061841329,1.68899375,119280.0,119270.0,0.33032]
[1755061846684,1.68899375,119280.0,119270.0,0.202]
[1755061846907,1.68899375,119280.0,119270.0,0.33024]
[1755061850402,2.40718617,119280.0,119270.0,0.33024]
[1755061850607,1.70644277,119280.0,119270.0,0.33024]
[1755061864528,2.40718617,119280.0,119270.0,0.33012]
[1755061864935,2.43203617,119280.0,119270.0,0.33012]
[1755061866030,0.32980597,119280.0,119270.0,0.33012]
[1755061866228,1.73129277,119280.0,119270.0,0.33012]
[1755061873301,1.70644277,119280.0,119270.0,0.33012]
[1755061876171,1.70345277,119280.0,119270.0,0.33227]
[1755061876584,1.70147277,119280.0,119270.0,0.33525]
[1755061877404,1.70147277,119280.0,119270.0,0.33227]
[1755061879217,1.70353277,119280.0,119270.0,0.33227]
[1755061881246,1.70674277,119280.0,119270.0,0.33227]
[1755061881438,1.70674277,119280.0,119270.0,0.33012]
[1755061886864,1.70674277,119280.0,119270.0,0.33227]
[1755061887498,1.70147277,119280.0,119270.0,0.33227]
[1755061887702,1.70353277,119280.0,119270.0,0.33227]
[1755061888237,1.70674277,119280.0,119270.0,0.33227]
[1755061888878,0.30525597,119280.0,119270.0,0.33227]
[1755061889084,1.70674277,119280.0,119270.0,0.33227]
[1755061890675,0.30525597,119280.0,119270.0,0.33227]
[1755061890893,1.70674277,119280.0,119270.0,0.33227]
[1755061891956,0.30525597,119280.0,119270.0,0.33227]
[1755061892155,1.70674277,119280.0,119270.0,0.33227]
[1755061902110,1.70674277,119280.0,119270.0,0.33191329]
[1755061907544,1.70674277,119280.0,119270.0,0.32976329]
[1755061916959,1.70674277,119280.0,119270.0,0.33183329]
[1755061917592,1.70353277,119280.0,119270.0,0.33183329]
[1755061923569,0.81560765,119280.0,119270.0,0.33490329]
[1755061923802,1.68402375,119280.0,119270.0,0.33490329]
[1755061926351,1.68597375,119280.0,119270.0,0.33183329]
[1755061926930,1.68402375,119280.0,119270.0,0.33183329]
[1755061927745,1.68597375,119280.0,119270.0,0.33183329]
[1755061930557,0.28448695,119280.0,119270.0,0.33183329]
[1755061930762,1.68402375,119280.0,119270.0,0.33183329]
[1755061931930,0.28253695,119280.0,119270.0,0.33183329]
[1755061932151,1.4336278,119280.0,119270.0,0.33490329]
[1755061939931,0.007,119280.0,119270.0,0.33490329]
[1755061940137,0.7077434,119280.0,119270.0,0.33490329]
[1755061941838,0.7057434,119280.0,119270.0,0.33490329]
[1755061942628,0.7007434,119280.0,119270.0,0.3343]
[1755061942869,0.7037434,119280.0,119270.0,0.3353]
[1755061943301,0.7047434,119280.0,119270.0,0.3353]
[1755061945534,1.4054868,119280.0,119270.0,0.3353]
[1755061947178,0.7047434,119280.0,119270.0,0.3353]
[1755061952367,0.004,119280.0,119270.0,0.5353]
[1755061952583,0.7047434,119280.0,119270.0,0.5353]
[1755061953623,0.004,119280.0,119270.0,0.5353]
[1755061953844,0.7047434,119280.0,119270.0,0.5353]
[1755061954491,0.7037434,119280.0,119270.0,0.5353]
[1755061955029,0.7037434,119280.0,119270.0,0.54359176]
[1755061955450,0.7037434,119280.0,119270.0,0.5353]
[1755061955864,0.7007434,119280.0,119270.0,0.5343]
[1755061956502,0.7027434,119280.0,119270.0,0.5353]
[1755061959248,0.7027434,119280.0,119270.0,0.54375269]
[1755061959889,0.002,119280.0,119270.0,0.54375269]
[1755061960093,0.71268768,119300.0,119280.0,0.01109]
[1755061960297,0.01405428,119300.0,119290.0,0.13013]
[1755061960506,0.71479768,119300.0,119290.0,0.13013]
[1755061961349,0.71579768,119300.0,119290.0,0.13013]
[1755061962657,0.71979768,119300.0,119290.0,0.13113]
[1755061962825,0.71879768,119300.0,119290.0,0.13113]
[1755061963250,0.02005428,119300.0,119290.0,0.13113]
[1755061963493,0.72079768,119300.0,119290.0,0.13113]
[1755061964117,0.71879768,119300.0,119290.0,0.13113]
[1755061964320,0.01805428,119300.0,119290.0,0.13113]
[1755061964621,0.71979768,119300.0,119290.0,0.13113]
[1755061966037,0.71879768,119300.0,119290.0,0.13013]
[1755061966240,0.71479768,119300.0,119290.0,0.13013]
[1755061966427,0.71879768,119300.0,119290.0,0.13113]
[1755061972379,0.7068534,119300.0,119290.0,0.13113]
[1755061976854,0.71813928,119300.0,119290.0,0.13113]
[1755061977047,0.71813928,119300.0,119290.0,0.12896]
[1755061978646,0.71813928,119300.0,119290.0,0.001]
[1755061978823,0.71813928,119300.0,119290.0,0.12888]
[1755061981600,0.71813928,119300.0,119290.0,0.32984]
[1755061983263,0.71813928,119300.0,119290.0,0.20196]
[1755061983513,1.41888268,119300.0,119290.0,0.32984]
[1755061987133,1.58652727,119300.0,119290.0,0.32984]